Cogmind - Beta 11.1 @@@ ROGUE MODE // 2022.06.22 @ 17:59:35 Player: btmk16 Result: Destroyed by as-60701 with Assembled Focal Cannon Performance ------------- Evolutions (3) 1500 Regions Visited (10) 2000 Robots Destroyed (108) 540 Value Destroyed (3818) 3818 Prototype IDs (33) 660 Alien Tech Used (0) 0 Bonus (1177) 1177 TOTAL SCORE: 9695 Bonus ------- High Alert Combat Kills 11 Follower Combat Kills 70 Aligned with FarCom 300 Destroyed Z-Imprinter 1000 Friendly Fire -204 Cogmind --------- Core Integrity 0/700 Matter 126/300 Energy 256/290 System Corruption 0% Temperature Cool (12) Movement Treading (240) Ox1 Location -7/Deep Caves Parts ------- > --- POWER (1) -------- Improved Deuterium Engine > --- PROPULSION (4) --- Medium Treads Medium Treads > --- UTILITY (5) ------ Huge Storage Unit Visual Processing Unit Hardened Light Armor Plating Hardened Light Armor Plating Hardened Light Armor Plating > --- WEAPON (3) ------- Mini Assault Cannon > --- INVENTORY (25) --- Zionite Biocell (600) High-capacity Matter Pod (200) Surveybot 24 Chip Hardened Light Armor Plating Hardened Medium Armor Plating Improved Medium Armor Plating Improved Field Recycling Unit (0) Bomb Factory No. 2 Guided Plasma Cannon Precision Assault Rifle Rocket Launcher Rocket Array Molecular Deconstructor Power Maul CR-A16's Pointy Stick Peak State ------------ > --- POWER ------------ Reinforced Ion Engine > --- PROPULSION ------- Armored Treads Armored Treads Advanced Treads Medium Treads > --- UTILITY ---------- Improved Heat Sink Huge Storage Unit Hardened Light Armor Plating Bomb Factory No. 2 > --- WEAPON ----------- Enhanced Autogun Enhanced Autogun CR-A16's Pointy Stick > --- INVENTORY -------- Light Nuclear Core Improved Deuterium Engine Light Treads Medium Treads Medium Treads High-capacity Matter Pod Visual Processing Unit Improved Signal Interpreter Hardened Light Armor Plating Hardened Light Armor Plating Hardened Light Armor Plating Hardened Medium Armor Plating Improved Medium Armor Plating Improved Field Recycling Unit Improved Field Recycling Unit Guided Plasma Cannon Enhanced Autogun Gauss Rifle Precision Assault Rifle Mini Assault Cannon Rocket Launcher Rocket Array Molecular Deconstructor Power Maul [Rating: 54] Favorites ----------- Power Reinforced Ion Engine Engine Reinforced Ion Engine Power Core Light Nuclear Core Propulsion Light Treads Treads Light Treads Leg Improved Aluminum Leg Wheel Wheel Utility Hardened Light Armor Plating Device Improved Heat Sink Storage Huge Storage Unit Processor Visual Processing Unit Protection Hardened Light Armor Plating Weapon Enhanced Autogun Energy Gun Field Laser Ballistic Gun Enhanced Autogun Ballistic Cannon Assault Cannon Launcher Rocket Launcher Special Weapon Molecular Deconstructor Impact Weapon Power Maul Piercing Weapon CR-A16's Pointy Stick Build | -11 -10 -10 -10 -9 -8 -7 -7 -7 -7 -7 ------- Run | Scr Mat Min Exi Min Mat Fac Low Low Zio Dee Slots Evolved 6 | . . . . . 4 2 . . . . Power . | . . . . . . . . . . . Propulsion 2 | . . . . . 1 1 . . . . Utility 3 | . . . . . 2 1 . . . . Weapon 1 | . . . . . 1 . . . . . Parts Attached 130 | . 12 6 3 1 32 21 15 3 14 23 Power 5 | . 1 1 1 . 1 . . . . 1 Engine 4 | . 1 . 1 . 1 . . . . 1 Core 1 | . . 1 . . . . . . . . Reactor . | . . . . . . . . . . . Propulsion 35 | . 8 3 1 . 11 5 4 . . 3 Treads 28 | . 3 1 1 . 11 5 4 . . 3 Leg 2 | . 2 . . . . . . . . . Wheel 5 | . 3 2 . . . . . . . . Hover . | . . . . . . . . . . . Flight . | . . . . . . . . . . . Utility 36 | . 2 . 1 . 7 5 1 1 10 9 Device 19 | . 1 . . . 3 3 1 . 8 3 Storage 2 | . 1 . . . . . . . . 1 Processor 1 | . . . . . . . . . . 1 Hackware . | . . . . . . . . . . . Protection 14 | . . . 1 . 4 2 . 1 2 4 Artifact . | . . . . . . . . . . . Weapon 54 | . 1 2 . 1 13 11 10 2 4 10 Energy Gun 1 | . . . . . 1 . . . . . Energy Cannon . | . . . . . . . . . . . Ballistic Gun 27 | . 1 1 . . 8 7 5 1 1 3 Ballistic Cannon 8 | . . . . 1 4 1 . . . 2 Launcher 9 | . . 1 . . . 2 2 1 1 2 Special Weapon 1 | . . . . . . . 1 . . . Impact Weapon 7 | . . . . . . 1 2 . 1 3 Slashing Weapon . | . . . . . . . . . . . Piercing Weapon 1 | . . . . . . . . . 1 . Special Melee Weapon . | . . . . . . . . . . . Unidentified Prototypes 8 | . . . . . 1 3 1 . 2 1 Parts Lost 25 | . 2 5 . . 1 1 2 1 . 13 Power 2 | . . 1 . . . . . . . 1 Propulsion 9 | . 1 2 . . . . 1 . . 5 Utility 7 | . . . . . 1 1 1 1 . 3 Weapon 7 | . 1 2 . . . . . . . 4 Highest Loss Streak 11 | . 1 3 . . 1 1 1 1 . 11 To Critical Strikes . | . . . . . . . . . . . Average Slot Usage (%) 97 | . 96 75 77 89 98 99 99 100 99 99 Engine 8 | . 14 . 6 14 9 7 7 7 7 6 Treads 24 | . 7 4 6 14 25 29 29 30 30 29 Wheel 3 | . 15 14 14 14 1 . . . . . Device 13 | . 13 14 14 . 8 14 15 15 14 14 Storage 8 | . 14 14 14 14 9 7 7 7 7 7 Protection 12 | . . . . 14 17 15 15 15 14 11 Ballistic Gun 18 | . 24 8 14 14 12 22 18 22 17 16 Ballistic Cannon 2 | . . . . 4 11 . . . . . Naked Turns . | . . . . . . . . . . . Heaviest Build 135 | 13 98 96 96 100 114 121 116 115 135 123 Greatest Support 90 | 20 26 40 10 10 60 88 90 90 90 90 Greatest Overweight (x) 11 | . 9 9 9 9 11 1 1 1 1 1 Average Overweight (x) 2 | . 4 6 9 9 2 1 1 1 1 1 Largest Inventory Capacity 25 | . 25 25 25 25 25 25 25 25 25 25 Average Capacity 24 | . 22 25 25 25 25 25 25 25 25 25 Most Carried 25 | . 25 25 25 25 25 25 25 25 25 25 Average Carried 24 | . 20 24 24 24 24 24 24 24 24 24 Final Capacity 25 | 8 25 25 25 25 25 25 25 25 25 25 Final Carried 25 | 6 25 25 25 25 25 25 25 24 25 17 Class Distribution -------------------- 45% | Mutant 30% | Scavenger-Tank 21% | Tank Dominant Class ---------------- Mutant | -10/Materials Mutant | -10/Mines Mutant | -10/Exiles Mutant | -9/Mines Scavenger-Tank | -8/Materials Scavenger-Tank | -7/Factory Mutant | -7/Lower Caves Tank | -7/Lower Caves Mutant | -7/Zion Mutant | -7/Deep Caves Resources | -11 -10 -10 -10 -9 -8 -7 -7 -7 -7 -7 ----------- Run | Scr Mat Min Exi Min Mat Fac Low Low Zio Dee Matter Collected 4024 | 200 348 55 103 106 1263 704 675 276 68 226 Remotely . | . . . . . . . . . . . Salvage Created 4123 | . 637 75 . . 1303 866 702 235 . 305 Parts 249 | . 39 11 . . 86 48 38 20 . 7 Haulers Intercepted 8 | . 2 . . . 4 2 . . . . Recyclers Shooed 2 | . 2 . . . . . . . . . Parts Field Recycled 9 | . . . . . . . . . 9 . Retrieved Matter 287 | . . . . . . . . . 287 . Parts Self-Destructed 41 | . . . . . . . 22 17 2 . Prevented . | . . . . . . . . . . . Kills | -11 -10 -10 -10 -9 -8 -7 -7 -7 -7 -7 ------- Run | Scr Mat Min Exi Min Mat Fac Low Low Zio Dee Combat Hostiles Destroyed 93 | . 14 4 . . 26 15 15 8 . 11 Guns 55 | . 14 1 . . 8 15 7 4 . 6 Cannons 19 | . . . . . 18 . . . . 1 AOE 19 | . . 3 . . . . 8 4 . 4 Classes Destroyed 16 | . 4 1 . . 5 1 2 . . 3 Worker 5 | . 1 1 . . 1 2 . . . . Builder 2 | . . 1 . . 1 . . . . . Hauler 8 | . 2 . . . 4 2 . . . . Recycler 2 | . . . . . 2 . . . . . Watcher 2 | . . . . . 1 1 . . . . Swarmer 18 | . 3 2 . . 5 4 . 4 . . Grunt 39 | . 11 2 . . 11 7 6 2 . . Duelist 4 | . . . . . 2 . 1 1 . . Sentry 10 | . . . . . 7 2 1 . . . Specialist 3 | . . . . . . . 3 . . . Hunter 6 | . . . . . 2 . 3 1 . . Programmer 3 | . . . . . . 2 1 . . . Z-Technician 5 | . . . . . . . . . . 5 Z-Light 5 | . . . . . . . . . . 5 Decomposer 1 | . . . . . . . 1 . . . Samaritan 3 | . . . . . . . 3 . . . Assembled 5 | . . . . . . . . . . 5 Best Kill Streak 6 | . 4 3 . . 5 3 6 4 . 4 Combat Bots Only 6 | . 4 2 . . 4 3 6 4 . 3 Max Kills in Single Turn 2 | . 1 1 . . 2 1 2 2 . 1 Gunslinging . | . . . . . . . . . . . Exploded 2 | . . 1 . . . . 2 2 . 1 Melee . | . . . . . . . . . . . Uniques/NPCs Destroyed 1 | . . . . . . . . . . 1 Z-Imprinter (-7/Deep Caves) Combat | -11 -10 -10 -10 -9 -8 -7 -7 -7 -7 -7 -------- Run | Scr Mat Min Exi Min Mat Fac Low Low Zio Dee Damage Taken 6584 | . 606 360 . . 1215 813 904 337 . 2349 Core 983 | . 108 105 . . 43 77 136 23 . 491 Absorbed by Shields 240 | . . . . . . 16 32 56 . 136 Regen/Repaired (Parts) 382 | . . . . . 139 243 . . . . Core Remaining (%) 68 | 100 . . . 14 92 . . . . . Volleys Fired 315 | . 69 19 . . 85 55 35 16 . 36 Largest 3 | . 2 1 . . 3 3 3 3 . 3 Hottest 132 | . 40 30 . . 132 81 78 75 . 101 Shots Fired 736 | . 122 19 . . 234 164 91 44 . 62 Gun 579 | . 122 10 . . 113 164 86 42 . 42 Cannon 128 | . . . . . 121 . . . . 7 Launcher 29 | . . 9 . . . . 5 2 . 13 Special . | . . . . . . . . . . . Kinetic 686 | . 122 10 . . 213 164 86 42 . 49 Thermal 21 | . . . . . 21 . . . . . Explosive 29 | . . 9 . . . . 5 2 . 13 Electromagnetic . | . . . . . . . . . . . Robot Hit Streak 15 | . 11 7 . . 11 12 15 4 . 5 Robot Miss Streak 7 | . 4 3 . . 5 6 3 4 . 7 Penetration Max 1 | . . . . . . . . . . 1 Secondary Targets 5 | . 3 . . . . 1 . 1 . . Max Gunslinging Chain 1 | . 1 . . . . 1 . 1 . . Shots Hit Robots 435 | . 78 4 . . 133 99 61 22 . 38 Core Hits 266 | . 37 12 . . 75 37 58 14 . 33 Critical Kills 4 | . 1 . . . 1 . 1 . . 1 Critical Parts Destroyed 6 | . 1 . . . 3 1 . . . 1 Critical Strikes 12 | . 2 . . . 6 1 1 . . 2 Burn 1 | . . . . . 1 . . . . . Destroy 7 | . 2 . . . 4 1 . . . . Blast 1 | . . . . . 1 . . . . . Smash 3 | . . . . . . . 1 . . 2 Melee Attacks 19 | . . . . . . 1 3 . 10 5 Impact 18 | . . . . . . 1 3 . 9 5 Slashing . | . . . . . . . . . . . Piercing 1 | . . . . . . . . . 1 . Sneak Attacks 6 | . . . . . . . 2 . . 4 Combat Hostiles . | . . . . . . . . . . . Follow-up Attacks . | . . . . . . . . . . . Damage Inflicted 10722 | . 813 364 . . 2730 1815 2303 650 . 2047 Guns 5251 | . 813 23 . . 966 1815 905 332 . 397 Cannons 1627 | . . . . . 1497 . . . . 130 Explosions 3138 | . . 341 . . 267 . 1202 318 . 1010 Melee 706 | . . . . . . . 196 . . 510 Ramming . | . . . . . . . . . . . Kinetic 6673 | . 813 23 . . 2258 1815 905 332 . 527 Thermal 472 | . . . . . 472 . . . . . Explosive 2871 | . . 341 . . . . 1202 318 . 1010 Electromagnetic . | . . . . . . . . . . . Impact 706 | . . . . . . . 196 . . 510 Slashing . | . . . . . . . . . . . Piercing . | . . . . . . . . . . . Highest Corruption 1 | . . . . . . . 1 1 1 . Average Corruption 1 | . . . . . . . 1 1 1 . Corruption Purged . | . . . . . . . . . . . Corruption Blocked . | . . . . . . . . . . . Effects 11 | . . . . . . . 4 3 4 . Message Errors 1 | . . . . . . . . 1 . . Matter Fused 4 | . . . . . . . 1 . 3 . Heat Flow Errors 2 | . . . . . . . . 2 . . Energy Discharges 3 | . . . . . . . 2 . 1 . Misfires 1 | . . . . . . . 1 . . . Overload Shots . | . . . . . . . . . . . Overflow Damage 554 | . . 16 . . 76 . 96 6 . 360 Projectiles 70 | . . . . . 58 . . . . 12 Explosions 66 | . . 16 . . 18 . 7 6 . 19 Melee 418 | . . . . . . . 89 . . 329 Knockbacks 31 | . . . . . 27 . . . . 4 Impact 1 | . . . . . . . . . . 1 Kinetic 26 | . . . . . 23 . . . . 3 Secondary 4 | . . . . . 4 . . . . . Self-Inflicted Damage 303 | . . 154 . . 77 . 72 . . . Shots 11 | . . 6 . . 1 . 4 . . . Rammed . | . . . . . . . . . . . Targets Rammed . | . . . . . . . . . . . Kicked . | . . . . . . . . . . . Crushed . | . . . . . . . . . . . Highest Temperature 465 | . 143 44 . . 465 173 99 186 . 86 Average Temperature 65 | . 34 15 . . 112 49 34 75 . 30 Received Heat Transfer 1661 | . 327 81 . . 369 266 115 78 . 425 Effects 5 | . . . . . 5 . . . . . Energy Bleed 3 | . . . . . 3 . . . . . Short Circuit 2 | . . . . . 2 . . . . . Siege Activations . | . . . . . . . . . . . Robots Corrupted . | . . . . . . . . . . . Combat Hostiles . | . . . . . . . . . . . Parts Fried 3 | . . . . . . . 1 . . 2 Impact Corruptions 11 | . . . . . . . 2 . . 9 Robots Melted . | . . . . . . . . . . . Combat Hostiles . | . . . . . . . . . . . Parts Melted . | . . . . . . . . . . . Heat Transferred 668 | . . . . . 668 . . . . . Parts Sabotaged . | . . . . . . . . . . . Parts Stolen . | . . . . . . . . . . . Parts Stripped . | . . . . . . . . . . . Power Chain Reactions . | . . . . . . . . . . . Missiles Intercepted . | . . . . . . . . . . . Alert | -11 -10 -10 -10 -9 -8 -7 -7 -7 -7 -7 ------- Run | Scr Mat Min Exi Min Mat Fac Low Low Zio Dee Peak Influence 420 | . 254 245 . . 420 257 . . . . Initial 191 | . . 51 . . . 191 . . . . Average 144 | . 116 194 . . 224 86 . . . . Maximum Alert Level 2 | . 1 1 . . 2 1 . . . . Low Security (%) 65 | . 81 42 . 100 31 91 . . . . Level 1 32 | . 18 57 . . 62 8 . . . . Level 2 2 | . . . . . 5 . . . . . Level 3 . | . . . . . . . . . . . Level 4 . | . . . . . . . . . . . Level 5 . | . . . . . . . . . . . High Security . | . . . . . . . . . . . Max Security . | . . . . . . . . . . . Squads Dispatched 16 | . 3 . . . 9 4 . . . . Investigation 2 | . . . . . 2 . . . . . Extermination 2 | . . . . . . 2 . . . . Reinforcement 7 | . 3 . . . 2 2 . . . . Assault . | . . . . . . . . . . . Garrison 5 | . . . . . 5 . . . . . Intercept . | . . . . . . . . . . . Searches Triggered . | . . . . . . . . . . . Construction Impeded . | . . . . . . . . . . . Haulers Reinforced 1 | . . . . . . 1 . . . . Active Scanning Responses . | . . . . . . . . . . . Cargo Convoy Interrupts . | . . . . . . . . . . . Stealth | -11 -10 -10 -10 -9 -8 -7 -7 -7 -7 -7 --------- Run | Scr Mat Min Exi Min Mat Fac Low Low Zio Dee Distress Signals 8 | . 2 . . . 4 2 . . . . Communications Jammed . | . . . . . . . . . . . Distress Signals . | . . . . . . . . . . . Times Spotted 144 | . 29 5 . . 46 26 17 8 . 13 Peak Tracking Total 6 | . 6 3 . . 5 4 4 4 . 3 Tactical Retreats 8 | . 1 . . . 5 . 2 . . . Traps | -11 -10 -10 -10 -9 -8 -7 -7 -7 -7 -7 ------- Run | Scr Mat Min Exi Min Mat Fac Low Low Zio Dee Traps Triggered 2 | . 1 . . . 1 . . . . . Indirectly . | . . . . . . . . . . . Trap Hack Attempts . | . . . . . . . . . . . Triggered . | . . . . . . . . . . . Disarmed . | . . . . . . . . . . . Reprogrammed . | . . . . . . . . . . . Reused . | . . . . . . . . . . . Traps Extracted . | . . . . . . . . . . . Installed . | . . . . . . . . . . . Triggered 1 | . . . . . . . . 1 . . Fabricated Traps 1 | . . . . . . . . . 1 . Machines | -11 -10 -10 -10 -9 -8 -7 -7 -7 -7 -7 ---------- Run | Scr Mat Min Exi Min Mat Fac Low Low Zio Dee Machines Disabled 9 | . . . . . 7 1 1 . . . Max in Single Turn 3 | . . . . . 3 1 1 . . . Garrison Access 2 | . . . . . 1 1 . . . . Machines Sabotaged . | . . . . . . . . . . . Garrisons Compromised . | . . . . . . . . . . . Overloaded Fab Kills . | . . . . . . . . . . . Hacking | -11 -10 -10 -10 -9 -8 -7 -7 -7 -7 -7 --------- Run | Scr Mat Min Exi Min Mat Fac Low Low Zio Dee Machines Accessed 19 | . 3 . 2 . 3 11 . . . . Terminals 9 | . 3 . . . 1 5 . . . . Fabricators 3 | . . . . . . 3 . . . . Repair Stations 3 | . . . . . 1 2 . . . . Recycling Units . | . . . . . . . . . . . Scanalyzers . | . . . . . . . . . . . Garrison Access 2 | . . . . . 1 1 . . . . Total Hacks 43 | . 6 . 5 . 7 25 . . . . Successful 30 | . 3 . 5 . 4 18 . . . . Failed 13 | . 3 . . . 3 7 . . . . Catastrophic 3 | . . . . . . 3 . . . . Database Lockouts . | . . . . . . . . . . . Manual 17 | . 1 . 1 . . 13 2 . . . Terminals 24 | . 6 . . . 2 16 . . . . Fabricators 4 | . . . . . . 4 . . . . Repair Stations 7 | . . . . . 3 4 . . . . Recycling Units . | . . . . . . . . . . . Scanalyzers . | . . . . . . . . . . . Garrison Access 3 | . . . . . 2 1 . . . . Terminal Hacks 14 | . 3 . 5 . 1 5 . . . . Record 6 | . 1 . 4 . . 1 . . . . Robot Analysis 1 | . . . . . 1 . . . . . Prototype ID Bank 1 | . 1 . . . . . . . . . Branch Access Points 1 | . . . . . . 1 . . . . Alert Level 3 | . 1 . . . . 2 . . . . Unreport Threat 1 | . . . . . . 1 . . . . EX-Prototype ID Bank 1 | . . . 1 . . . . . . . Fabricator Hacks 1 | . . . . . . 1 . . . . Network Status 1 | . . . . . . 1 . . . . Repair Station Hacks 6 | . . . . . 2 4 . . . . Scan Component 3 | . . . . . 1 2 . . . . Repair 3 | . . . . . 1 2 . . . . Recycling Unit Hacks . | . . . . . . . . . . . Scanalyzer . | . . . . . . . . . . . Garrison Access Hacks 2 | . . . . . 1 1 . . . . Seal Access 2 | . . . . . 1 1 . . . . Unauthorized Hacks 7 | . . . . . . 7 . . . . Terminals 4 | . . . . . . 4 . . . . Track 1 | . . . . . . 1 . . . . Assimilate 1 | . . . . . . 1 . . . . Botnet 2 | . . . . . . 2 . . . . Fabricators 3 | . . . . . . 3 . . . . Fabnet 3 | . . . . . . 3 . . . . Repair Stations . | . . . . . . . . . . . Recycling Units . | . . . . . . . . . . . Scanalyzers . | . . . . . . . . . . . Garrison Access . | . . . . . . . . . . . Data Cores Recovered . | . . . . . . . . . . . Used . | . . . . . . . . . . . Hacking Detections 13 | . 2 . . . 2 9 . . . . Full Trace Events 1 | . . . . . 1 . . . . . Feedback Events . | . . . . . . . . . . . Feedback Blocked . | . . . . . . . . . . . Robot Schematics Acquired 3 | . . . . . . . . . 3 . Robots Built . | . . . . . . . . . . . Authchips . | . . . . . . . . . . . Time . | . . . . . . . . . . . Total Robot Build Rating . | . . . . . . . . . . . Part Schematics Acquired 13 | . . . . . . . . . 13 . Parts Built . | . . . . . . . . . . . Authchips . | . . . . . . . . . . . Time . | . . . . . . . . . . . Total Part Build Rating . | . . . . . . . . . . . Parts Repaired 3 | . . . . . 1 2 . . . . Time 84 | . . . . . 26 58 . . . . Parts Recycled . | . . . . . . . . . . . Recycled Matter . | . . . . . . . . . . . Retrieved Matter . | . . . . . . . . . . . Retrieved Components . | . . . . . . . . . . . Parts Scanalyzed . | . . . . . . . . . . . Part Schematics Acquired . | . . . . . . . . . . . Parts Damaged . | . . . . . . . . . . . Bothacking | -11 -10 -10 -10 -9 -8 -7 -7 -7 -7 -7 ------------ Run | Scr Mat Min Exi Min Mat Fac Low Low Zio Dee Used RIF Installer . | . . . . . . . . . . . Robots Hacked . | . . . . . . . . . . . Non-combat . | . . . . . . . . . . . Combat . | . . . . . . . . . . . Robot Hacks Applied . | . . . . . . . . . . . Relay Couplers Released . | . . . . . . . . . . . Fabnet Peak Effective % . | . . . . . . . . . . . Robots Rewired . | . . . . . . . . . . . Allies Hacked . | . . . . . . . . . . . Hacks Repelled . | . . . . . . . . . . . Allies | -11 -10 -10 -10 -9 -8 -7 -7 -7 -7 -7 -------- Run | Scr Mat Min Exi Min Mat Fac Low Low Zio Dee Total Allies 4 | . . . . 3 . 1 . . . . Largest Group 3 | . . . . 3 3 1 1 . . . Highest-Rated Group 40 | . . . . 40 40 10 10 . . . Highest-Rated Ally 16 | . . . . 16 16 10 10 . . . Total Orders . | . . . . . . . . . . . Ally Attacks 27 | . . . . . 27 . . . . . Total Damage 321 | . . . . . 321 . . . . . Kills 2 | . . . . . 2 . . . . . Allies Corrupted . | . . . . . . . . . . . Allies Melted . | . . . . . . . . . . . Intel | -11 -10 -10 -10 -9 -8 -7 -7 -7 -7 -7 ------- Run | Scr Mat Min Exi Min Mat Fac Low Low Zio Dee Robot Analysis Total 1 | . . . . . 1 . . . . . Derelict Logs Recovered 2 | . . . . . . . . 1 1 . Drone Launches . | . . . . . . . . . . . Drone Recoveries . | . . . . . . . . . . . Exploration | -11 -10 -10 -10 -9 -8 -7 -7 -7 -7 -7 ------------- Run | Scr Mat Min Exi Min Mat Fac Low Low Zio Dee Turns Passed 14174 | . 1477 314 553 364 2685 2332 1406 669 3073 1301 Spaces Moved 5350 | 1 747 126 255 161 759 800 537 263 1239 462 Core . | . . . . . . . . . . . Treads 3976 | . 1 14 . . 660 800 537 263 1239 462 Legs 200 | 1 199 . . . . . . . . . Wheels 1174 | . 547 112 255 161 99 . . . . . Hover . | . . . . . . . . . . . Flight . | . . . . . . . . . . . Fastest Speed 120 | 120 120 140 215 215 215 240 240 241 241 240 Average Speed 227 | 120 165 210 215 215 239 240 240 241 241 240 Slowest Speed 480 | 120 480 480 215 215 245 240 245 241 241 241 Overloaded Moves . | . . . . . . . . . . . Propulsion Burnouts . | . . . . . . . . . . . Robots Hopped . | . . . . . . . . . . . Cave-ins Triggered . | . . . . . . . . . . . Exploration Rate (%) 50 | 2 87 24 61 45 48 27 61 56 79 64 Regions Visited 10 Branch Regions 7 Pre-discovered Areas 3 | . . . 1 . . . . 1 1 . Known Exits Taken 1 | . . . . . . 1 . . . . Unknown Exits Taken 9 | 1 1 1 1 1 1 . 1 1 1 . Scrap Searched 8 | . . . . 1 . . 3 2 2 . Spaces Dug 4 | . . . . . . 1 . . 3 . Terrain Destroyed 320 | . . 73 . . 56 1 115 7 3 65 Melee 4 | . . . . . . 1 . . 3 . Projectile 21 | . . . . . 21 . . . . . AOE 295 | . . 73 . . 35 . 115 7 . 65 Terrain Rammed . | . . . . . . . . . . . Walls Destroyed . | . . . . . . . . . . . Machines Disabled . | . . . . . . . . . . . Actions | -11 -10 -10 -10 -9 -8 -7 -7 -7 -7 -7 --------- Run | Scr Mat Min Exi Min Mat Fac Low Low Zio Dee Total 6906 | . 877 158 260 180 1491 1155 602 281 1309 593 Wait 938 | . 22 6 . 17 560 243 . . 27 63 Move 5340 | . 746 125 254 160 758 799 536 262 1238 462 Hop . | . . . . . . . . . . . Pick Up 66 | . 21 . 2 1 17 13 5 . 6 1 Fast Attach 40 | . 2 4 . 1 14 9 3 . 6 1 Attach 28 | . 1 2 2 . 2 3 3 1 4 10 Detach 5 | . . 2 . . . . . . 1 2 Swap 62 | . 9 . 1 . 16 9 9 2 4 12 Drop 93 | . 7 . 1 1 39 23 8 . 13 1 Fire 315 | . 69 19 . . 85 55 35 16 . 36 Melee 19 | . . . . . . 1 3 . 10 5 Ram . | . . . . . . . . . . . Kick . | . . . . . . . . . . . Crush . | . . . . . . . . . . . Escape Stasis . | . . . . . . . . . . . Rewire . | . . . . . . . . . . . Trap . | . . . . . . . . . . . Miscellaneous . | . . . . . . . . . . . Route ------- -11/Scrapyard -10/Materials (discovered 4 exits: [*Mat x3] / [*Min]) -10/Mines (discovered 2 exits: [*Mat] / *Exi) -10/Exiles -9/Mines -8/Materials (discovered 2 exits: *Fac / [*Sto]) -7/Factory (discovered 2 exits: *Low x2) -7/Lower Caves -7/Lower Caves (discovered 2 exits: [*Fac] / [*Zio]) -7/Zion (discovered 2 exits: [*Dee] / [*Pro]) -7/Deep Caves History --------- Turn | Location | Event 1 | -11/Scrapyard | Discovered new exit (range 0) 1 | -11/Scrapyard | Entered Materials 146 | -10/Materials | Discovered new exit (range 15) 317 | -10/Materials | Build established: Mutant 1033 | -10/Materials | Discovered new exit (range 16) 1418 | -10/Materials | Discovered new exit (range 11) 1458 | -10/Materials | Discovered new exit (range 10) 1478 | -10/Materials | Entered Mines 1483 | -10/Mines | Core integrity fell below 50% 1517 | -10/Mines | Lost 3 parts (1p1n1w) 1611 | -10/Mines | Core integrity fell below 20% 1672 | -10/Mines | Discovered new exit (range 9) 1779 | -10/Mines | Deemed a non-threat by the Exiles lab entrance 1779 | -10/Mines | Discovered new exit (range 5) 1792 | -10/Mines | Entered Exiles 1844 | -10/Exiles | Met 8R-AWN 1881 | -10/Exiles | Met EX-HEX 1956 | -10/Exiles | Met EX-BIN 1986 | -10/Exiles | Aligned with FarCom system 1988 | -10/Exiles | Given EX-Vault access code 2055 | -10/Exiles | Opened EX-Vault 2080 | -10/Exiles | Found Gui. Plasma Cannon 2125 | -10/Exiles | Warned to stay clear of 0b10 Research branches 2189 | -10/Exiles | Met EX-DEC 2200 | -10/Exiles | Learned location of Zion (-7) 2307 | -10/Exiles | Discovered new exit (range 14) 2345 | -10/Exiles | Left Exiles lab with Gui. Plasma Cannon 2345 | -10/Exiles | Entered Mines 2586 | -9/Mines | A weapon hastily lodged in a ceiling crevice suddenly fell to the ground 2657 | -9/Mines | Discovered new exit (range 10) 2697 | -9/Mines | Assisted by bots powering up and referring to "LRC-V3" 2709 | -9/Mines | Entered Materials 2709 | -8/Materials | Accompanied by 3 allies 2709 | -8/Materials | Evolved 4 slots: Propulsion x1, Utility x2, Weapon x1 2795 | -8/Materials | Garrison activated, responded to threat 2798 | -8/Materials | Repaired Lgt. Treads 3023 | -8/Materials | Build established: Skirmisher 3282 | -8/Materials | Garrison activated, responded to threat 3435 | -8/Materials | Build established: Scavenger-Tank 3633 | -8/Materials | Discovered new exit (range 15) 5178 | -8/Materials | Discovered new exit (range 3) 5394 | -8/Materials | Entered Factory 5394 | -7/Factory | Evolved 2 slots: Propulsion x1, Utility x1 6545 | -7/Factory | Repaired Hrd. Light Armor Plating 7137 | -7/Factory | Repaired Lgt. Treads 7431 | -7/Factory | Found Prototype Launcher 7431 | -7/Factory | Identified Rocket Array 7537 | -7/Factory | Identified exit to Lower Caves 7726 | -7/Factory | Entered Lower Caves 7726 | -7/Lower Caves | Accompanied by 1 ally 7976 | -7/Lower Caves | Encountered a Warlord checkpoint 8227 | -7/Lower Caves | Build established: Mutant 8532 | -7/Lower Caves | Attracted the attention of an 0b10 checkpoint 8694 | -7/Lower Caves | Acquired the password to a Derelict Tinkerer's latest research 8709 | -7/Lower Caves | Found Prototype Special Weapon 8709 | -7/Lower Caves | Identified Molecular Deconstructor 8831 | -7/Lower Caves | Caught by Unaware searching for contraband prototypes 8853 | -7/Lower Caves | Caught by Unaware searching for contraband prototypes 9101 | -7/Lower Caves | Discovered new exit (range 10) 9132 | -7/Lower Caves | Entered another Lower Caves area 9145 | -7/Lower Caves | Build established: Tank 9166 | -7/Lower Caves | Discovered new exit (range 5) 9728 | -7/Lower Caves | Discovered new exit (range 9) 9801 | -7/Lower Caves | Entered Zion 9893 | -7/Zion | Discovered new exit (range 15) 10252 | -7/Zion | Given the Hacking Drone Bay 10253 | -7/Zion | Found Prototype Device 10253 | -7/Zion | Identified Hacking Drone Bay 10282 | -7/Zion | System corruption cleaned by Quarantine Array 10432 | -7/Zion | Learned 4 Factory zone layouts 10505 | -7/Zion | Found CR-A16's Pointy Stick 11157 | -7/Zion | Build established: Mutant 11224 | -7/Zion | Loaded intel: 4 derelict terminal locations 12061 | -7/Zion | Found Prototype Device 12061 | -7/Zion | Identified Bomb Factory No. 2 12862 | -7/Zion | Discovered new exit (range 4) 12865 | -7/Zion | Saw the warning signs outside the Deep Caves entrance 12874 | -7/Zion | Entered Deep Caves 13226 | -7/Deep Caves | Found Surveybot 24 Chip 13380 | -7/Deep Caves | Attacked by Z-Imprinter 13405 | -7/Deep Caves | Destroyed Z-Imprinter 13802 | -7/Deep Caves | Z-Facility disabled 14140 | -7/Deep Caves | Spotted as-60701 14147 | -7/Deep Caves | Core integrity fell below 50% 14161 | -7/Deep Caves | Core integrity fell below 20% 14175 | -7/Deep Caves | Destroyed by as-60701 with Assembled Focal Cannon Last Messages --------------- 14124_ Acquired 15 matter. 14142_ Slug penetrates as-60701. 14144_ as-60701: "DSI9AT1D G8OHIBQ29FWG 26R186 QD12WHW8W33 TDK1 81FTS" 14146_ Gauss Rifle destroyed. 14149_ Rnf. Ion Engine destroyed. 14149_ Hrd. Light Armor Plating destroyed. 14152_ Med. Treads destroyed. 14152_ Enh. Autogun destroyed. 14155_ Lgt. Treads destroyed. 14157_ as-40041 knocked back. 14159_ Arm. Treads destroyed. 14160_ Adv. Treads destroyed. 14161_ as-40041 knocked back. 14163_ Destroyed Asb. Hover Unit. 14163_ as-40041 knocked back. 14165_ Arm. Treads destroyed. 14165_ Hardlight Generator destroyed. 14165_ as-40041 destroyed. 14168_ Imp. Heat Sink destroyed. 14174_ Acquired 4 matter. Map ----- +----------------------------------------------------+ | ?????????????????????????????????????????????????? | | ?????????????????????????????????????????????????? | | ?????????????????????????????????????????????????? | | ?????????????????????????????????????????????????? | | ?????????????????????????????????????????????????? | | ??????????????????????????????????????????##?????? | | ??????????????????????????????????????????# ?????? | | ?????????????????????????????????????????? ?????? | | ????????????????? ??????????????????????# ?????? | | ??????????????? ???????? ?????????# ?????? | | ???????????? #??????? ???????# ##???? | | ??????????[ / / #??????? ???????## ##??? | | ??????? [ #??????? ???????# ##?? | | ?????? ! / #???????# ???????## #?? | | ?????? ! #?????### ?????### #?? | | ?????? #?????? #?????# #?? | | ????? ! #??????## #?????# ##? | | ????? #?????## ##???????# ## | | ???? ! h ! ##???## ##??????## | | ???? #???# ###?????## # | | ???? ! ! ! #???# ##?????# ## | | ??? * h #????# #####?# ### | | ??? ###### ### #?# | | ?? ! ! % #?## | | ???" #??# | | ?? @% ## #######??? | | ??" ;### #####????????? | | ?? b #??# #????????????? | | ??? "#??# #???????????? | | ??? # # "???# ????????? | | ???? #### ?# ## ##???## ## #???????? | | ???? ?????#??#??##??????#########?######???????? | | ???? ????????????????????????????????????????????? | | ?????????????????????????????????????????????????? | | | | | | | | | | | | | | | | | | | | | | | | | | | | | | | | | +----------------------------------------------------+ Best States ------------- Heat Dissipation 48 Energy Generation 16 Energy Capacity 865 Matter Stores 300 Matter Capacity 300 Sight Range 18 Terrain Scan Range 16 Terrain Scan Density 10 Armor Coverage 450 Evasion (%) 55 Recoil Reduction 4 Item Schematics ----------------- Component Analysis Suite | -7/Zion | Archive Magnetic Acceleration Cannon | -7/Zion | Archive Adv. ECM Suite | -7/Zion | Archive Coil Gun | -7/Zion | Archive Gatling Laser | -7/Zion | Archive Adv. Heat Sink | -7/Zion | Archive Remote Datajack | -7/Zion | Archive Imp. Component Analysis Suite | -7/Zion | Archive Variable Charge Gun | -7/Zion | Archive Phase Shifter | -7/Zion | Archive Adv. Assault Cannon | -7/Zion | Archive Core Analyzer | -7/Zion | Archive Hvy. Plasma Cannon | -7/Zion | Archive Robot Schematics ------------------ T-07 Excavator | -7/Zion | Archive C-57 Dissector | -7/Zion | Archive A-02 Transporter | -7/Zion | Archive Fabricated ------------ Nothing Alien Tech Used ----------------- None Achievements -------------- None Challenges ------------ None Game ------ Seed XenonWaveBroadsword Manual? 0 Play Time 00:56:12 Cumulative 339.0 hours Start 2022.06.22 @ 12:13:23 End 2022.06.22 @ 17:59:35 Sessions 1 Manual Loads 0 Difficulty Rogue Special Mode None Game No. 413 Rogue 412 Adventurer 0 Explorer 1 Win Type - Total 9 Types 6/0/1/2/0/0/0/0/0 Lore% 73 Gallery% 83 Achievement% 61 Wizard Run 0 Options --------- ASCII 0 Keyboard 1 Movement Vi Keybinds 0 Fullscreen 1 Font 18/SmallcapsGlow Map View 76x50 Tactical HUD 1 Map Filters NONE Filters NONE Steam 1 RUN: 7a70885a-39bd-42c3-85eb-13ad90f9eb96